Workbook

Sheet PnL2025 fully Occupied
A1: 509 Branford LLC
A2: PROJECTION 2026
B4: 2025-01-01 | C4: 2025-02-01 | D4: 2025-03-01 | E4: 2025-04-01 | F4: 2025-05-01 | G4: 2025-06-01 | H4: 2025-07-01 | I4: 2025-08-01 | J4: 2025-09-01 | K4: 2025-10-01 | L4: 2025-11-01 | M4: 2025-12-01 | N4: Total
A5: Income
A6: Income
A7: 4105 - RENTAL INCOME | B7: =677*79+(1500*2) -> 56483 | C7: 56483 | D7: 56483 | E7: 56483 | F7: 56483 | G7: 56483 | H7: 56483 | I7: 56483 | J7: 56483 | K7: 56483 | L7: 56483 | M7: 56483 | N7: =SUM(B7:M7) -> 677796 | O7: Based on 81 unit - 79@ 677/mo + rental TWO apartments $1500/mo each
A8: Total Income | B8: =SUM(B7:B7) -> 56483 | C8: 56483 | D8: 56483 | E8: 56483 | F8: 56483 | G8: 56483 | H8: 56483 | I8: 56483 | J8: 56483 | K8: 56483 | L8: 56483 | M8: 56483 | N8: 677796
A10: Total Income | B10: =+B8 -> 56483 | C10: 56483 | D10: 56483 | E10: 56483 | F10: 56483 | G10: 56483 | H10: 56483 | I10: 56483 | J10: 56483 | K10: 56483 | L10: 56483 | M10: 56483 | N10: 677796
A13: Expense
A14: Expense
A15: 5000 - RE TAXES | B15: 13997.94 | C15: 0 | D15: 0 | E15: 0 | F15: 0 | G15: 0 | H15: 13997.94 | I15: 0 | J15: 0 | K15: 0 | L15: 0 | M15: 0 | N15: 27995.88 | O15: Actual 2 tax bills - 2024/2025
A16: 5120 - ELECTRIC | B16: =123.09+159.38 -> 282.47 | C16: =123.09+159.38 -> 282.47 | D16: 282.47 | E16: 282.47 | F16: 282.47 | G16: 282.47 | H16: 282.47 | I16: 282.47 | J16: 282.47 | K16: 282.47 | L16: 282.47 | M16: 282.47 | N16: 3389.64 | O16: These are the actual two meter bills. Acct #7088 is for the street light. Carl will verify which account meter #029527022 corresponds to.
A17: 5130 - WATER | B17: 2198.15 | C17: 2198.15 | D17: 2198.15 | E17: 2198.15 | F17: 2198.15 | G17: 2198.15 | H17: 2198.15 | I17: 2198.15 | J17: 2198.15 | K17: 2198.15 | L17: 2198.15 | M17: 2198.15 | N17: 26377.8 | O17: Applied the actual April 2025 monthly bill throughout the year.
A18: 5131 - SEWER USAGE FEE | B18: 0 | C18: 0 | D18: 0 | E18: 0 | F18: 0 | G18: 0 | H18: 0 | J18: 0 | K18: 0 | L18: 0 | M18: 0 | O18: BILLED BACK TO TENANTS
A19: 5330 - SNOW REMOVAL | B19: 2000 | C19: 2000 | D19: 2000 | M19: 2000 | N19: 8000 | O19: Actual 1 year invoices
A20: 5339 - LANDSCAPE | E20: 4500 | F20: 3000 | H20: 675 | I20: 1800 | J20: =1800+2650 -> 4450 | K20: 2650 | N20: 17075 | O20: Actual 1 year invoices
A21: 5340 - REFUSE | O21: TO BE BILLED BACK TO TENANTS STARTING IN 2026
A22: 5400 - INSURANCE | B22: =256.666666666667+175.55 -> 432.2166667 | C22: =256.666666666667+175.55 -> 432.2166667 | D22: 432.2166667 | E22: 432.2166667 | F22: 432.2166667 | G22: 432.2166667 | H22: 432.2166667 | I22: 432.2166667 | J22: 432.2166667 | K22: 432.2166667 | L22: 432.2166667 | M22: 432.2166667 | N22: 5186.6 | O22: Oil tank insurance $3080 and monthly hanover Insurance 175.22/mo (allocated invoice)
A23: 5900 - MANAGEMENT FEE | B23: 3409.37 | C23: 3409.37 | D23: 3409.37 | E23: 3409.37 | F23: 3409.37 | G23: 3409.37 | H23: 3409.37 | I23: 3409.37 | J23: 3409.37 | K23: 3409.37 | L23: 3409.37 | M23: 3409.37 | N23: =SUM(B23:M23) -> 40912.44 | O23: Actual new monthly rate 5/2025
A24: Total Expense | B24: =SUM(B15:B23) -> 22320.14667 | C24: =SUM(C15:C23) -> 8322.206667 | D24: =SUM(D15:D23) -> 8322.206667 | E24: 10822.20667 | F24: 9322.206667 | G24: 6322.206667 | H24: 20995.14667 | I24: 8122.206667 | J24: 10772.20667 | K24: 8972.206667 | L24: 6322.206667 | M24: 8322.206667 | N24: =SUM(N15:N23) -> 128937.36
A26: Total Expense | B26: =+B24 -> 22320.14667 | C26: 8322.206667 | D26: 8322.206667 | E26: 10822.20667 | F26: 9322.206667 | G26: 6322.206667 | H26: 20995.14667 | I26: 8122.206667 | J26: 10772.20667 | K26: 8972.206667 | L26: 6322.206667 | M26: 8322.206667 | N26: 128937.36
A29: Operating Net Income | B29: =+B10-B26 -> 34162.85333 | C29: 48160.79333 | D29: 48160.79333 | E29: 45660.79333 | F29: 47160.79333 | G29: 50160.79333 | H29: 35487.85333 | I29: 48360.79333 | J29: 45710.79333 | K29: 47510.79333 | L29: 50160.79333 | M29: 48160.79333 | N29: 548858.64
A31: VALUE AT A 7 CAP = $7.8MM
